lending/lending_fUSD_20260306
["ID","MTS","AMOUNT","RATE_DAILY","PERIOD"]
[407842532,1772825467351,-416.72974495,0.00044932,10]
[407842533,1772825467361,-151.65,0.00044933,120]
[407842534,1772825467371,-418.82,0.00044955,120]
[407842535,1772825467382,-159.10106474,0.00044961,120]
[407842536,1772825467391,-151.29,0.00044998,120]
[407842537,1772825467401,-44630.93550085,0.00044999,10]
[407842538,1772825467410,-20000.00000199,0.00045,5]
[407842539,1772825467420,-9999.00260161,0.00045,120]
[407842540,1772825467429,-535.22,0.00045,2]
[407842541,1772825467438,-182.80013699,0.00045,120]
[407842542,1772825467448,-326.0,0.00045,120]
[407842543,1772825467458,-266.0,0.00045,120]
[407842544,1772825467467,-268.61065084,0.00045,120]
[407842545,1772825467476,-1012.509,0.00045,120]
[407842546,1772825467485,-49193.0,0.00045,120]
[407842547,1772825467495,-459.48,0.00045,2]
[407842548,1772825467504,-1650.0,0.00045,30]
[407842549,1772825467513,-1000.0,0.00045,120]
[407842550,1772825467522,-550.0,0.00045,120]
[407842551,1772825467532,-9017.19051674,0.00045,120]
[407842552,1772825467540,-710.67554992,0.00045,120]
[407842553,1772825467550,-433.08696978,0.00045,120]
[407842554,1772825467559,-142799.7408274,0.00045,120]
[407842555,1772825467568,-736.89587432,0.00045,120]
[407842556,1772825467577,-599.999998,0.00045,120]
[407842557,1772825467587,-818.96092658,0.00045,120]
[407842558,1772825467596,-4044.4248696,0.00045,120]
[407842559,1772825467605,-1112.32840917,0.00045,120]
[407842560,1772825467615,-2453.5228079,0.00045,14]
[407842561,1772825467623,-232.80521172,0.00045,120]
[407842562,1772825467634,-30581.07714999,0.00045,2]
[407842563,1772825467643,-10603.21239978,0.00045,60]
[407842564,1772825467652,-554.50121299,0.00045,120]
[407842565,1772825467661,-392.13488635,0.00045,120]
[407842566,1772825467670,-482.97353636,0.00045,30]
[407842567,1772825467680,-630.10567932,0.00045,120]
[407842568,1772825467689,-16338.72783808,0.00045,120]
[407842569,1772825467702,-211.17929,0.00045,120]
[407842570,1772825467711,-175.69729978,0.00045,13]
[407842571,1772825467720,-988.19675222,0.00045,120]
[407842572,1772825467729,-268.55944574,0.00045,120]
[407842573,1772825467739,-325.4056652,0.00045,120]
[407842574,1772825467748,-152.62917312,0.00045,30]
[407842575,1772825467758,-431.05678014,0.00045,120]
[407842576,1772825467767,-610.03281414,0.00045,10]
[407842577,1772825467779,-381.84931664,0.00045,120]
[407842578,1772825467789,-1033.08613614,0.00045,120]
[407842579,1772825467798,-1063.97169079,0.00045,30]
[407842580,1772825467808,-19973.06368471,0.00045,45]
[407842581,1772825467817,-361.92894398,0.00045,30]
[407842582,1772825467827,-426.60384726,0.00045,120]
[407842583,1772825467838,-236.11779888,0.00045,10]
[407842584,1772825467847,-10000.1714747,0.00045,10]
[407842585,1772825467858,-290.69815351,0.00045,3]
[407842586,1772825467867,-150.0,0.00045,4]
[407842587,1772825467876,-196699.0,0.00045,60]
[407842588,1772825467885,-161.1,0.00045,85]
[407842589,1772825467898,-12500.0,0.00045,120]
[407842590,1772825467907,-10024.729982,0.00045,120]
[407842591,1772825467916,-699.08,0.00045,120]
[407842592,1772825467925,-298.0,0.00045,120]
[407842593,1772825467936,-500.0,0.00045,120]
[407842594,1772825467946,-500.0,0.00045008,120]
[407842595,1772825467956,-500.0,0.00045008,120]
[407842596,1772825467968,-291.19125143,0.00045008,120]
[407842597,1772825467979,-253463.02638107,0.0004501,5]
[407842598,1772825467989,-150.0,0.00045027,120]
[407842599,1772825467999,-151.65,0.00045033,120]
[407842600,1772825468008,-156.4697347,0.00045045,2]
[407842601,1772825468017,-500.0,0.00045068,120]
[407842602,1772825468026,-151.29,0.00045098,120]
[407842603,1772825468035,-150.0,0.00045098,120]
[407842604,1772825468044,-2000.0,0.000451,2]
[407842605,1772825468055,-315.0,0.00045107,90]
[407842606,1772825468065,-151.65,0.00045133,120]
[407842607,1772825468074,-160.0,0.00045186,16]
[407842608,1772825468084,-150.0,0.00045194,120]
[407842609,1772825468095,-151.29,0.00045198,120]
[407842610,1772825468104,-150.0,0.00045199,120]
[407842611,1772825468114,-150.0,0.000452,76]
[407842612,1772825468123,-746.0,0.00045205,120]
[407842613,1772825468132,-418.82,0.00045229,120]
[407842614,1772825468142,-151.65,0.00045233,120]
[407842615,1772825468151,-151.29,0.00045298,120]
[407842616,1772825468161,-150.0,0.00045299,120]
[407842617,1772825468170,-515.61,0.000453,14]
[407842618,1772825468179,-12500.0,0.00045312,120]
[407842619,1772825468188,-150.0,0.00045314,120]
[407842620,1772825468197,-156.4697347,0.00045319,2]
[407842621,1772825468207,-151.65,0.00045333,120]
[407842622,1772825468217,-1042.7,0.0004539,120]
[407842623,1772825468227,-151.29,0.00045398,120]
[407842624,1772825468236,-261.33,0.000454,120]
[407842625,1772825468254,-152.0,0.000454,120]
[407842626,1772825468265,-10353.0732603,0.000454,30]
[407842627,1772825468275,-633.49,0.000454,120]
[407842628,1772825468284,-151.65,0.00045433,120]
[407842629,1772825468293,-151.0,0.00045476,120]
[407842630,1772825468303,-500.0,0.00045479,120]
[407842631,1772825468312,-718.04,0.00045479,120]
[407842632,1772825468322,-4252.23317,0.00045479,120]
[407842633,1772825468331,-4252.23317,0.00045479,120]
[407842634,1772825468341,-4252.23317,0.00045479,120]
[407842635,1772825468350,-4252.23317,0.00045479,120]
[407842636,1772825468360,-4252.23317,0.00045479,120]
[407842637,1772825468371,-4252.23317,0.00045479,120]
[407842638,1772825468381,-400.0,0.0004549,30]
[407842639,1772825468390,-151.29,0.00045498,120]
[407842640,1772825468400,-298.0,0.000455,120]
[407842641,1772825468410,-500.0,0.000455,120]
[407842642,1772825468420,-418.82,0.00045503,120]
[407842643,1772825468431,-151.65,0.00045533,120]
[407842644,1772825468441,-150.0,0.00045535,120]
[407842645,1772825468450,-150.0,0.0004555,120]
[407842646,1772825468460,-156.4697347,0.00045593,2]
[407842647,1772825468470,-778.32,0.00045597,120]
[407842648,1772825468479,-151.29,0.00045598,120]
[407842649,1772825468489,-154.0,0.000456,120]
[407842650,1772825468499,-668.9,0.000456,120]
[407842651,1772825468508,-670.5,0.000456,120]
[407842652,1772825468518,-150.0,0.0004562,120]
[407842653,1772825468527,-12500.0,0.00045625,120]
[407842654,1772825468537,-151.65,0.00045633,120]
[407842655,1772825468546,-503.59633018,0.00045678,120]
[407842656,1772825468556,-159.10106474,0.00045686,120]
[407842657,1772825468567,-151.29,0.00045698,120]
[407842658,1772825468576,-289.50762577,0.000457,120]
[407842659,1772825468586,-151.65,0.00045733,120]
[407842660,1772825468595,-1012.98,0.00045753,120]
[407842661,1772825468605,-500.0,0.00045753,120]
[407842662,1772825468614,-500.0,0.00045753,120]
[407842663,1772825468624,-500.0,0.00045753,120]
[407842664,1772825468633,-500.0,0.00045753,120]
[407842665,1772825468642,-500.0,0.00045753,120]
[407842666,1772825468652,-500.0,0.00045753,120]
[407842667,1772825468661,-500.0,0.00045753,120]
[407842668,1772825468671,-233.72718804,0.00045753,120]
[407842669,1772825468682,-418.82,0.00045777,120]
[407842670,1772825468692,-150.0,0.00045791,120]
[407842671,1772825468706,-151.29,0.00045798,120]
[407842672,1772825468715,-151.65,0.00045833,120]
[407842673,1772825468724,-218.61207107,0.00045852,120]
[407842674,1772825468734,-150.0,0.00045864,120]
[407842675,1772825468746,-159.49661076,0.00045866,30]
[407842676,1772825468756,-237.39121081,0.00045866,30]
[407842677,1772825468766,-178.56416906,0.00045866,30]
[407842678,1772825468778,-150.0,0.00045866,30]
[407842679,1772825468789,-150.0,0.00045866,30]
[407842680,1772825468798,-259.39398879,0.00045866,30]
[407842681,1772825468812,-150.0,0.00045866,30]
[407842682,1772825468821,-150.0,0.00045866,30]
[407842683,1772825468831,-496.10721813,0.00045866,30]
[407842684,1772825468840,-150.0,0.00045866,30]
[407842685,1772825468850,-150.0,0.00045866,30]
[407842686,1772825468861,-150.0,0.00045866,30]
[407842687,1772825468870,-150.0,0.00045866,30]
[407842688,1772825468880,-150.0,0.00045866,30]
[407842689,1772825468889,-198.36675964,0.00045866,30]
[407842690,1772825468899,-150.0,0.00045866,30]
[407842691,1772825468909,-196.401106,0.00045866,30]
[407842692,1772825468919,-150.0,0.00045866,30]
[407842693,1772825468931,-156.4697347,0.00045867,2]
[407842694,1772825468942,-150.0,0.00045878,120]
[407842695,1772825468953,-711.11658278,0.0004588,120]
[407842696,1772825468964,-500.0,0.0004589,120]
[407842697,1772825468973,-151.34,0.00045898,120]
[407842698,1772825468983,-3400.0,0.000459,16]
[407842699,1772825468992,-150.0,0.000459,120]
[407842700,1772825469002,-667.81,0.000459,120]
[407842701,1772825469012,-159.49661076,0.00045917,30]
[407842702,1772825469021,-237.39121081,0.00045917,30]
[407842703,1772825469030,-178.56416906,0.00045917,30]
[407842704,1772825469040,-259.39398879,0.00045917,30]
[407842705,1772825469049,-496.10721813,0.00045917,30]
[407842706,1772825469058,-196.401106,0.00045917,30]
[407842707,1772825469068,-150.0,0.00045921,30]
[407842708,1772825469077,-151.65,0.00045933,120]
[407842709,1772825469086,-12500.0,0.00045938,120]
[407842710,1772825469096,-150.0,0.00045957,30]
[407842711,1772825469105,-150.0,0.00045964,30]
[407842712,1772825469115,-150.0,0.00045967,120]
[407842713,1772825469124,-159.49661076,0.00045969,30]
[407842714,1772825469133,-237.39121081,0.00045969,30]
[407842715,1772825469143,-178.56416906,0.00045969,30]
[407842716,1772825469153,-259.39398879,0.00045969,30]
[407842717,1772825469163,-496.10721813,0.00045969,30]
[407842718,1772825469173,-196.401106,0.00045969,30]
[407842719,1772825469182,-150.0,0.00045975,30]
[407842720,1772825469196,-150.0,0.00045987,30]
[407842721,1772825469205,-1073.0853127,0.00045999,120]
[407842722,1772825469216,-50000.0,0.00046,68]
[407842723,1772825469225,-500.0,0.00046,120]
[407842724,1772825469236,-500.0,0.00046,120]
[407842725,1772825469247,-1650.0,0.00046,30]
[407842726,1772825469257,-450.03529829,0.00046,120]
[407842727,1772825469267,-1000.0,0.00046,30]
[407842728,1772825469277,-306.77047522,0.00046,2]
[407842729,1772825469288,-706.61869086,0.00046,120]
[407842730,1772825469300,-206.37834406,0.00046,30]
[407842731,1772825469310,-44543.29654676,0.00046,120]
[407842732,1772825469320,-517.93966521,0.00046,120]
[407842733,1772825469329,-33795.1620592,0.00046,120]
[407842734,1772825469339,-40363.7330939,0.00046,30]
[407842735,1772825469350,-5821.77930115,0.00046,120]
[407842736,1772825469362,-3858.57903545,0.00046,90]
[407842737,1772825469373,-353.79961881,0.00046,120]
[407842738,1772825469383,-4022.25852486,0.00046,120]
[407842739,1772825469395,-17458.55839771,0.00046,120]
[407842740,1772825469406,-338.31191375,0.00046,120]
[407842741,1772825469415,-469003.54771953,0.00046,10]
[407842742,1772825469861,-2002.08088793,0.00027397,10]
[407842743,1772825469874,-1138.00561177,0.00027397,10]
[407842744,1772825469890,-621.03224511,0.00027397,10]
[407842745,1772825482145,-500.0,0.0001332,2]
[407842749,1772825497316,-509.0,0.0001342,2]
[407842750,1772825784518,513.0,0.0001342,2]
[407842752,1772825821230,30.231691,0.00013868,2]
[407842753,1772825821257,269.768309,0.00013868,2]
[407842755,1772825881577,300.0,0.00013868,2]
[407842756,1772825967008,201.0,0.00013868,2]
[407842762,1772826061189,300.0,0.00013868,2]
[407842763,1772826114594,280.0,7.646e-05,2]
[407842764,1772826114794,280.0,8.048e-05,2]
[407842765,1772826115054,280.0,8.45e-05,2]
[407842766,1772826115266,208.90538326,8.853e-05,2]
[407842767,1772826115292,71.09461674,8.853e-05,2]
[407842768,1772826115482,280.0,9.255e-05,2]
[407842769,1772826115685,280.0,9.657e-05,2]
[407842770,1772826115963,91.80088486,0.0001006,2]
[407842771,1772826115995,188.19911514,0.0001006,2]
[407842773,1772826297449,-280.0,0.00010462,2]
[407842774,1772826297477,-250.0,0.00010663,2]
[407842775,1772826297509,-280.0,0.00010865,2]
[407842776,1772826297538,-200.0,0.00010947,2]
[407842777,1772826297567,-280.0,0.00011267,2]
[407842778,1772826297596,-250.0,0.00011508,2]
[407842779,1772826297625,-250.0,0.00011508,2]
[407842780,1772826297653,-217.11483198,0.00011569,2]
[407842781,1772826297689,-280.0,0.00011669,2]
[407842782,1772826297993,-863.66029194,0.00012036,2]
[407842783,1772826298026,-3615.90080527,0.00012036,2]
[407842784,1772826298073,-2768.20838946,0.00012036,2]
[407842785,1772826298109,-280.0,0.00012072,2]
[407842786,1772826298153,-9440.01,0.00012072,2]
[407842787,1772826303156,-300.0,0.00012035,2]
[407842788,1772826303188,-559.98,0.00012072,2]
[407842789,1772826303219,-150.99,0.00012072,2]
[407842790,1772826303254,-280.0,0.00012474,2]
[407842791,1772826303290,-350.0,0.00012802,2]
[407842792,1772826303324,-280.0,0.00012877,2]
[407842793,1772826303357,-299.99,0.00012877,2]
[407842794,1772826303500,-5558.09,0.00012909,2]
[407842795,1772826306624,-3204.4,0.00012909,2]
[407842796,1772826306870,-3591.21,0.00012909,2]
[407842797,1772826306909,-166.66,0.00013013,2]
[407842798,1772826306939,-1423.0,0.00013178,2]
[407842799,1772826306968,-228.0,0.00013178,2]
[407842800,1772826312319,-293.0,0.00013205,2]
[407842801,1772826327431,-420.0,0.00013211,2]
[407842802,1772826338480,156.69,0.000132,2]
[407842803,1772826342564,-265.0,0.00013231,2]
[407842804,1772826357639,-280.0,0.00013279,2]
[407842805,1772826372858,-500.0,0.00013381,2]
[407842806,1772826448939,-514.0,0.0001342,2]
[407842809,1772826463954,-166.66,0.00013443,2]
[407842810,1772826495448,-200.0,0.00013443,2]
[407842812,1772826526054,-150.0,0.00013428,2]
[407842816,1772826612801,-259.0,0.00013281,2]
[407842817,1772826629673,-427.5242,0.00013281,2]
[407842830,1772826631944,-583.896,0.00013505,2]
[407842831,1772826632004,-424.80754086,0.00013505,2]
[407842832,1772826632014,-122.96554082,0.00013575,2]
[407842833,1772826632059,-84.70943496,0.00013575,2]
[407842834,1772826632071,-1855.53147924,0.00013636,2]
[407842835,1772826632082,-1200.0,0.00013647,2]
[407842836,1772826632091,-7916.26,0.00013648,2]
[407842837,1772826632101,-200.0,0.00013675,2]
[407842838,1772826632111,-300.0,0.00013679,2]
[407842840,1772826632120,-300.0,0.00013679,2]
[407842842,1772826632130,-25825.94,0.0001368,2]
[407842844,1772826632139,-280.0,0.00013681,2]
[407842853,1772826632385,-2923.07,0.00013699,2]
[407842854,1772826632395,-69126.34470485,0.00013726,2]
[407842855,1772826632405,-14160.12,0.00013736,2]
[407842856,1772826632414,-500.0,0.00013773,2]
[407842857,1772826632424,-500.0,0.00013773,2]
[407842858,1772826632433,-500.0,0.00013773,2]
[407842859,1772826632444,-150.0,0.00013868,2]
[407842860,1772826632453,-500.0,0.00013869,2]
[407842861,1772826632462,-500.0,0.00013869,2]
[407842862,1772826632471,-500.0,0.00013869,2]
[407842863,1772826632481,-500.0,0.00013869,2]
[407842864,1772826632490,-500.0,0.00013869,2]
[407842865,1772826632500,-500.0,0.00013869,2]
[407842866,1772826632510,-500.0,0.00013869,2]
[407842867,1772826632519,-500.0,0.00013869,2]
[407842868,1772826632528,-500.0,0.00013869,2]
[407842869,1772826632538,-500.0,0.00013869,2]
[407842870,1772826632547,-500.0,0.00013869,2]
[407842871,1772826632556,-500.0,0.00013869,2]
[407842872,1772826632566,-500.0,0.00013869,2]
[407842873,1772826632575,-500.0,0.00013869,2]
[407842874,1772826632584,-500.0,0.00013869,2]
[407842875,1772826632594,-500.0,0.00013869,2]
[407842876,1772826632603,-500.0,0.00013869,2]
[407842877,1772826632612,-500.0,0.00013869,2]
[407842878,1772826632622,-637.44948244,0.00013869,2]
[407842879,1772826632631,-500.0,0.00013869,2]
[407842880,1772826632641,-500.0,0.00013869,2]
[407842881,1772826632650,-500.0,0.00013869,2]
[407842882,1772826632659,-500.0,0.00013869,2]
[407842883,1772826632669,-500.0,0.00013869,2]
[407842884,1772826632678,-500.0,0.00013869,2]
[407842885,1772826632687,-500.0,0.00013869,2]
[407842886,1772826632697,-500.0,0.00013869,2]
[407842887,1772826632706,-500.0,0.00013869,2]
[407842888,1772826632715,-501.65490111,0.00013869,2]
[407842889,1772826632726,-500.0,0.00013869,2]
[407842890,1772826632735,-500.0,0.00013869,2]
[407842891,1772826632744,-500.0,0.00013869,2]
[407842892,1772826632754,-500.0,0.00013869,2]
[407842893,1772826632763,-500.0,0.00013869,2]
[407842894,1772826632772,-500.0,0.00013869,2]
[407842895,1772826632782,-500.0,0.00013869,2]
[407842896,1772826632792,-500.0,0.00013869,2]
[407842897,1772826632801,-500.0,0.00013869,2]
[407842898,1772826632811,-503.7310091,0.00013869,2]
[407842899,1772826632820,-500.0,0.00013869,2]
[407842900,1772826632830,-166.66,0.00013872,2]
[407842901,1772826632839,-1000.0,0.00013943,2]
[407842902,1772826632848,-1000.0,0.00013943,2]
[407842903,1772826632858,-3731.44221888,0.00013944,2]
[407842904,1772826632870,-52919.6138107,0.00013944,2]
[407842905,1772826632880,-2500.0,0.00014059,2]
[407842906,1772826632889,-171.61952176,0.00014072,2]
[407842907,1772826632899,-280.0,0.00014084,2]
[407842908,1772826632908,-500.0,0.00014158,2]
[407842909,1772826632918,-298.61178508,0.00014158,2]
[407842910,1772826632928,-1008.35756595,0.00014158,5]
[407842911,1772826632937,-164400.16,0.00014159,2]
[407842912,1772826632946,-500.0,0.00014173,2]
[407842913,1772826632955,-500.0,0.00014173,2]
[407842914,1772826632965,-501.14462458,0.00014173,2]
[407842915,1772826632975,-500.0,0.00014173,2]
[407842916,1772826632984,-500.0,0.00014173,2]
[407842917,1772826632998,-166.66,0.00014302,2]
[407842918,1772826633008,-1000.0,0.00014321,2]
[407842919,1772826633017,-2923.07,0.00014384,2]
[407842920,1772826633027,-658.0,0.00014384,2]
[407842921,1772826633038,-236.82,0.00014394,2]
[407842922,1772826633047,-280.0,0.00014486,2]
[407842923,1772826633057,-1798.73111429,0.00014503,2]
[407842924,1772826633067,-600.0,0.00014526,2]
[407842925,1772826633077,-600.0,0.00014526,2]
[407842926,1772826633087,-600.0,0.00014526,2]
[407842927,1772826633096,-600.0,0.00014526,2]
[407842928,1772826633106,-600.0,0.00014526,2]
[407842929,1772826633115,-166.66,0.00014527,2]
[407842930,1772826633124,-151.0,0.00014634,2]
[407842931,1772826633134,-151.0,0.00014634,2]
[407842932,1772826633143,-300.0,0.0001472,2]
[407842933,1772826633153,-300.0,0.0001472,2]
[407842934,1772826633162,-273.37464928,0.0001472,2]
[407842935,1772826633172,-166.66,0.00014731,2]
[407842936,1772826633182,-166.66,0.00014832,2]
[407842937,1772826633191,-3157.76746786,0.0001486,2]
[407842938,1772826633200,-1500.0,0.00014868,2]
[407842939,1772826633210,-280.0,0.00014888,2]
[407842940,1772826633219,-255.0,0.00014991,2]
[407842941,1772826633229,-420.0,0.00014991,2]
[407842942,1772826633238,-250.0,0.00015,2]
[407842943,1772826633248,-2923.07,0.00015068,2]
[407842944,1772826633257,-4874.04971246,0.00015124,2]
[407842945,1772826633268,-166.66,0.00015138,2]
[407842946,1772826633279,-166.66,0.00015161,2]
[407842947,1772826633289,-236.82,0.00015194,2]
[407842948,1772826633299,-1448.5564,0.00015233,2]
[407842949,1772826633308,-280.0,0.00015291,2]
[407842950,1772826633318,-500.0,0.00015416,2]
[407842951,1772826633327,-166.66,0.00015444,2]
[407842952,1772826633337,-1407.18,0.00015471,2]
[407842953,1772826633347,-200.0,0.00015503,2]
[407842954,1772826633356,-600.0,0.000156,5]
[407842955,1772826633366,-482.63132758,0.000157,5]
[407842956,1772826633378,-817.36867242,0.000157,5]
[407842957,1772826633388,-154.776,0.00015722,2]
[407842958,1772826633398,-2271.806,0.00015722,2]
[407842959,1772826633407,-500.0,0.00015722,2]
[407842960,1772826633416,-166.66,0.0001575,2]
[407842961,1772826633426,-2923.07,0.00015753,2]
[407842962,1772826633435,-2000.0,0.000158,5]
[407842963,1772826633444,-2469.75,0.00015812,2]
[407842964,1772826633453,-2600.0,0.000159,5]
[407842965,1772826633463,-236.82,0.00015993,2]
[407842966,1772826633472,-166.66,0.00016056,2]
[407842967,1772826633481,-217.55,0.0001621,2]
[407842968,1772826633491,-433.0,0.00016212,2]
[407842969,1772826633500,-1579.25580262,0.0001627,2]
[407842970,1772826633509,-411.5692,0.0001628,2]
[407842971,1772826633518,-316.4178057,0.0001628,2]
[407842972,1772826633527,-4878.1905,0.0001628,2]
[407842973,1772826633536,-892.86053309,0.00016319,2]
[407842974,1772826633545,-305.58269973,0.00016329,2]
[407842975,1772826633554,-1535.19626875,0.00016329,2]
[407842976,1772826633563,-157.40983265,0.00016329,2]
[407842977,1772826633573,-906.33303672,0.00016329,2]
[407842978,1772826633581,-2744.6124182,0.00016329,2]
[407842979,1772826633591,-902.75970024,0.00016329,2]
[407842980,1772826633600,-1319.07265706,0.00016329,2]
[407842981,1772826633609,-3084.0,0.00016356,2]
[407842982,1772826633618,-151.0,0.0001637,2]
[407842983,1772826633627,-151.0,0.0001637,2]
[407842984,1772826633636,-151.0,0.0001637,2]
[407842985,1772826633646,-151.0,0.0001637,2]
[407842986,1772826633655,-151.0,0.0001637,2]
[407842987,1772826633664,-151.0,0.0001637,2]
[407842988,1772826633673,-151.0,0.0001637,2]
[407842989,1772826633682,-151.0,0.0001637,2]
[407842990,1772826633692,-151.0,0.0001637,2]
[407842991,1772826633701,-151.0,0.0001637,2]
[407842992,1772826633711,-151.0,0.0001637,2]
[407842993,1772826633720,-151.0,0.0001637,2]
[407842994,1772826633731,-151.0,0.0001637,2]
[407842995,1772826633741,-151.0,0.0001637,2]
[407842996,1772826633750,-151.0,0.0001637,2]
[407842997,1772826633759,-151.0,0.0001637,2]
[407842998,1772826633769,-151.0,0.0001637,2]
[407842999,1772826633778,-500.0,0.00016373,2]
[407843000,1772826633787,-182.43846544,0.00016373,2]
[407843001,1772826633797,-500.0,0.00016373,2]
[407843002,1772826633807,-500.0,0.00016373,2]
[407843003,1772826633816,-151.0,0.00016377,2]
[407843004,1772826633826,-313.42852978,0.00016379,2]
[407843005,1772826633835,-411.99245244,0.00016379,2]
[407843006,1772826633844,-500.0,0.00016379,2]
[407843007,1772826633853,-500.0,0.00016379,2]
[407843008,1772826633862,-536.33025881,0.00016379,2]
[407843009,1772826633871,-237.48437513,0.00016379,2]
[407843010,1772826633881,-327284.33131081,0.0001638,2]
[407843011,1772826633893,-1254.41808677,0.0001638,2]
[407843014,1772826637989,-15550.49147711,0.0001638,2]
[407843015,1772826638042,-38381.97207384,0.0001638,2]
[407843016,1772826638097,-911.9637408,0.0001638,2]
[407843017,1772826638111,-625.54909215,0.0001638,2]
[407843018,1772826638124,-321.43281942,0.0001638,2]
[407843024,1772826640241,-66616.84972985,0.0001638,2]
[407843025,1772826640455,-2234.6404385,0.0001638,2]
[407843026,1772826640660,-2046818.35123075,0.0001638,2]
[407843027,1772826640670,-587.0,0.00016429,2]
[407843028,1772826640680,-2923.07,0.00016438,2]
[407843029,1772826640689,-217.55,0.0001648,2]
[407843030,1772826640699,-166.34,0.00016712,2]
[407843031,1772826640708,-217.55,0.0001675,2]
[407843032,1772826640718,-236.82,0.00016793,2]
[407843033,1772826640728,-1000.0,0.00016921,2]
[407843034,1772826640738,-300.0,0.00017,2]
[407843036,1772826640748,-217.55,0.0001702,2]
[407843037,1772826640758,-217.55,0.0001729,2]
[407843038,1772826640767,-1500.0,0.00017468,2]
[407843039,1772826640777,-430.0,0.00017515,2]
[407843040,1772826640787,-217.55,0.0001756,2]
[407843041,1772826640797,-236.82,0.00017593,2]
[407843042,1772826640807,-3000.0,0.000177,16]
[407843043,1772826640818,-217.55,0.0001783,2]
[407843044,1772826640831,-823.0,0.00018005,2]
[407843045,1772826640842,-2000.0,0.00018016,2]
[407843046,1772826640852,-250.0,0.00018033,2]
[407843047,1772826640862,-12353.7,0.00018072,2]
[407843048,1772826640872,-217.55,0.000181,2]
[407843049,1772826640882,-500.0,0.00018357,3]
[407843050,1772826640892,-217.55,0.0001837,2]
[407843051,1772826640902,-236.82,0.00018392,2]
[407843052,1772826640911,-326.15,0.0001843,2]
[407843053,1772826640921,-2180.57628362,0.00018564,2]
[407843054,1772826640931,-220.0,0.000186,2]
[407843055,1772826640941,-217.55,0.0001864,2]
[407843056,1772826640950,-220.0,0.00018692,2]
[407843057,1772826640961,-220.0,0.00018717,2]
[407843058,1772826640970,-220.0,0.00018841,2]
[407843059,1772826640980,-220.0,0.0001887,2]
[407843060,1772826640991,-151.0,0.00018897,2]
[407843061,1772826641001,-93935.6948,0.000189,2]
[407843062,1772826641011,-217.55,0.0001891,2]
[407843063,1772826641021,-220.0,0.00018914,2]
[407843064,1772826641031,-220.0,0.00018975,2]
[407843065,1772826641300,-220.0,0.00018987,2]
[407843066,1772826641312,-10000.0,0.00019,10]
[407843067,1772826641323,-10000.0,0.00019,20]
[407843068,1772826641333,-350.0,0.00019,2]
[407843069,1772826641343,-5000.0,0.00019,5]
[407843070,1772826641353,-10000.0,0.00019,30]
[407843071,1772826641363,-5000.0,0.00019,15]
[407843072,1772826641372,-220.0,0.00019039,2]
[407843073,1772826641382,-217.55,0.0001918,2]
[407843074,1772826641392,-236.82,0.00019192,2]
[407843075,1772826641403,-220.0,0.00019222,2]
[407843076,1772826641412,-220.0,0.00019229,2]
[407843077,1772826641422,-220.0,0.00019259,2]
[407843078,1772826641432,-1579.25580255,0.0001934,2]
[407843079,1772826641442,-217.55,0.0001945,2]